fUSD/lending_fUSD_20250610
["ID","MTS","AMOUNT","RATE_DAILY","PERIOD"]
[365193294,1749526263377,-490.0,0.00017095,2]
[365193295,1749526263387,-440.0,0.00017095,2]
[365193296,1749526263397,-440.0,0.00017095,2]
[365193297,1749526263407,-440.0,0.00017095,2]
[365193298,1749526263416,-490.0,0.00017095,2]
[365193299,1749526263426,-527.66304059,0.00017095,2]
[365193300,1749526263436,-490.0,0.00017095,2]
[365193301,1749526263447,-490.0,0.00017095,2]
[365193302,1749526263457,-490.0,0.00017095,2]
[365193303,1749526263467,-490.0,0.00017095,2]
[365193304,1749526263477,-490.0,0.00017095,2]
[365193305,1749526263487,-440.0,0.00017095,2]
[365193306,1749526263497,-490.0,0.00017095,2]
[365193307,1749526263508,-490.0,0.00017095,2]
[365193308,1749526263518,-490.0,0.00017095,2]
[365193309,1749526263528,-490.0,0.00017095,2]
[365193310,1749526263537,-496.49,0.00017095,2]
[365193311,1749526263547,-470.0,0.00017095,2]
[365193312,1749526263558,-490.0,0.00017095,2]
[365193313,1749526263569,-490.0,0.00017095,2]
[365193314,1749526263579,-576.32,0.00017095,2]
[365193315,1749526263590,-490.0,0.00017095,2]
[365193316,1749526263601,-509.57,0.00017095,2]
[365193317,1749526263611,-490.0,0.00017095,2]
[365193318,1749526263621,-490.0,0.00017095,2]
[365193319,1749526263631,-490.0,0.00017095,2]
[365193320,1749526263642,-480.0,0.00017095,2]
[365193321,1749526263654,-440.0,0.00017095,2]
[365193322,1749526263664,-490.0,0.00017095,2]
[365193323,1749526263675,-490.0,0.00017095,2]
[365193324,1749526263686,-490.0,0.00017095,2]
[365193325,1749526263697,-490.0,0.00017095,2]
[365193326,1749526263707,-420.0,0.00017095,2]
[365193327,1749526263717,-490.0,0.00017095,2]
[365193328,1749526263728,-392.53303,0.00017095,2]
[365193329,1749526263738,-480.0,0.00017095,2]
[365193330,1749526263749,-490.0,0.00017095,2]
[365193331,1749526263760,-490.0,0.00017095,2]
[365193332,1749526263771,-228.83468264,0.00017095,2]
[365193333,1749526263782,-490.0,0.00017095,2]
[365193334,1749526263793,-490.0,0.00017095,2]
[365193335,1749526263804,-490.0,0.00017095,2]
[365193336,1749526263815,-490.0,0.00017095,2]
[365193337,1749526263825,-490.0,0.00017095,2]
[365193338,1749526263836,-490.0,0.00017095,2]
[365193339,1749526263847,-490.0,0.00017095,2]
[365193340,1749526263858,-490.0,0.00017095,2]
[365193341,1749526263868,-490.0,0.00017095,2]
[365193342,1749526263879,-490.0,0.00017095,2]
[365193343,1749526263889,-400.20471108,0.00017095,2]
[365193344,1749526263899,-490.0,0.00017095,2]
[365193345,1749526263910,-490.0,0.00017095,2]
[365193346,1749526263922,-490.0,0.00017095,2]
[365193347,1749526263934,-572.56,0.00017095,2]
[365193348,1749526263944,-490.0,0.00017095,2]
[365193349,1749526263954,-490.0,0.00017095,2]
[365193350,1749526263966,-490.0,0.00017095,2]
[365193351,1749526263976,-490.0,0.00017095,2]
[365193352,1749526263986,-670.49,0.00017095,2]
[365193353,1749526263998,-1021.55,0.00017095,2]
[365193354,1749526264011,-400.6,0.00017095,2]
[365193355,1749526264021,-490.0,0.00017095,2]
[365193356,1749526264031,-490.0,0.00017095,2]
[365193357,1749526264042,-658.39,0.00017095,2]
[365193358,1749526264052,-490.0,0.00017095,2]
[365193359,1749526264062,-844.16,0.00017095,2]
[365193360,1749526264073,-434.18212079,0.00017095,2]
[365193361,1749526264084,-924.26,0.00017095,2]
[365193362,1749526264095,-579.36,0.00017095,2]
[365193363,1749526264106,-490.0,0.00017095,2]
[365193364,1749526264116,-490.0,0.00017095,2]
[365193365,1749526264127,-586.8,0.00017095,2]
[365193366,1749526264137,-1163.85,0.00017095,2]
[365193367,1749526264149,-490.0,0.00017095,2]
[365193368,1749526264159,-490.0,0.00017095,2]
[365193369,1749526264170,-490.0,0.00017095,2]
[365193370,1749526264180,-647.58,0.00017095,2]
[365193371,1749526264191,-490.0,0.00017095,2]
[365193372,1749526264201,-490.0,0.00017095,2]
[365193373,1749526264212,-490.0,0.00017095,2]
[365193374,1749526264223,-621.71,0.00017095,2]
[365193375,1749526264233,-490.0,0.00017095,2]
[365193376,1749526264244,-490.0,0.00017095,2]
[365193377,1749526264254,-1000.0,0.00017095,2]
[365193378,1749526264265,-508.09,0.00017095,2]
[365193379,1749526264275,-490.0,0.00017095,2]
[365193380,1749526264285,-490.0,0.00017095,2]
[365193381,1749526264296,-490.0,0.00017095,2]
[365193382,1749526264306,-490.0,0.00017095,2]
[365193383,1749526264317,-490.0,0.00017095,2]
[365193384,1749526264328,-490.0,0.00017095,2]
[365193385,1749526264339,-490.0,0.00017095,2]
[365193386,1749526264350,-684.99,0.00017095,2]
[365193387,1749526264360,-490.0,0.00017095,2]
[365193388,1749526264371,-490.0,0.00017095,2]
[365193389,1749526264382,-490.0,0.00017095,2]
[365193390,1749526264393,-490.0,0.00017095,2]
[365193391,1749526264403,-2996.61,0.00017095,2]
[365193392,1749526264414,-490.0,0.00017095,2]
[365193393,1749526264424,-490.0,0.00017095,2]
[365193394,1749526264435,-281.87515733,0.00017095,2]
[365193395,1749526264446,-470.0,0.00017095,2]
[365193396,1749526264457,-490.0,0.00017095,2]
[365193397,1749526264468,-490.0,0.00017095,2]
[365193398,1749526264479,-1031.3,0.00017095,2]
[365193399,1749526264488,-490.0,0.00017095,2]
[365193400,1749526264498,-490.0,0.00017095,2]
[365193401,1749526264508,-490.0,0.00017095,2]
[365193402,1749526264518,-669.24,0.00017095,2]
[365193403,1749526264527,-490.0,0.00017095,2]
[365193404,1749526264538,-182.84,0.00017095,2]
[365193405,1749526264548,-490.0,0.00017095,2]
[365193406,1749526264558,-490.0,0.00017095,2]
[365193407,1749526264568,-490.0,0.00017095,2]
[365193408,1749526264579,-543.04,0.00017095,2]
[365193409,1749526264589,-490.0,0.00017095,2]
[365193410,1749526264599,-1097.65,0.00017095,2]
[365193411,1749526264610,-490.0,0.00017095,2]
[365193412,1749526264620,-490.0,0.00017095,2]
[365193413,1749526264635,-490.0,0.00017095,2]
[365193414,1749526264646,-490.0,0.00017095,2]
[365193415,1749526264658,-490.0,0.00017095,2]
[365193416,1749526264668,-490.0,0.00017095,2]
[365193417,1749526264679,-490.0,0.00017095,2]
[365193418,1749526264688,-490.0,0.00017095,2]
[365193419,1749526264698,-694.53,0.00017095,2]
[365193420,1749526264708,-526.5,0.00017095,2]
[365193421,1749526264719,-490.0,0.00017095,2]
[365193422,1749526264729,-490.0,0.00017095,2]
[365193423,1749526264739,-490.0,0.00017095,2]
[365193424,1749526264749,-1394.7,0.00017095,2]
[365193425,1749526264759,-703.97,0.00017095,2]
[365193426,1749526264769,-490.0,0.00017095,2]
[365193427,1749526264779,-490.0,0.00017095,2]
[365193428,1749526264790,-490.0,0.00017095,2]
[365193429,1749526264799,-490.0,0.00017095,2]
[365193430,1749526264810,-490.0,0.00017095,2]
[365193431,1749526264820,-23018.55,0.00017095,2]
[365193432,1749526264830,-490.0,0.00017095,2]
[365193433,1749526264841,-528.75,0.00017095,2]
[365193434,1749526264851,-490.0,0.00017095,2]
[365193435,1749526264861,-1059.34,0.00017095,2]
[365193436,1749526264870,-490.0,0.00017095,2]
[365193437,1749526264881,-480.0,0.00017095,2]
[365193438,1749526264891,-490.0,0.00017095,2]
[365193439,1749526264901,-490.0,0.00017095,2]
[365193440,1749526264912,-490.0,0.00017095,2]
[365193441,1749526264925,-490.0,0.00017095,2]
[365193442,1749526264935,-490.0,0.00017095,2]
[365193443,1749526264945,-490.0,0.00017095,2]
[365193444,1749526264955,-490.0,0.00017095,2]
[365193445,1749526264965,-490.0,0.00017095,2]
[365193446,1749526264976,-490.0,0.00017095,2]
[365193447,1749526264987,-490.0,0.00017095,2]
[365193448,1749526264998,-490.0,0.00017095,2]
[365193449,1749526265008,-490.0,0.00017095,2]
[365193450,1749526265018,-490.0,0.00017095,2]
[365193451,1749526265027,-490.0,0.00017095,2]
[365193452,1749526265037,-490.0,0.00017095,2]
[365193453,1749526265047,-490.0,0.00017095,2]
[365193454,1749526265058,-490.0,0.00017095,2]
[365193455,1749526265068,-490.0,0.00017095,2]
[365193456,1749526265078,-1485.99,0.00017095,2]
[365193457,1749526265088,-490.0,0.00017095,2]
[365193458,1749526265102,-490.0,0.00017095,2]
[365193459,1749526265112,-490.0,0.00017095,2]
[365193460,1749526265121,-490.0,0.00017095,2]
[365193461,1749526265131,-490.0,0.00017095,2]
[365193462,1749526265141,-490.0,0.00017095,2]
[365193463,1749526265152,-490.0,0.00017095,2]
[365193464,1749526265162,-1514.56,0.00017095,2]
[365193465,1749526265373,-490.0,0.00017095,2]
[365193466,1749526265384,-524.27,0.00017095,2]
[365193467,1749526265394,-440.0,0.00017095,2]
[365193468,1749526265403,-490.0,0.00017095,2]
[365193469,1749526265413,-490.0,0.00017095,2]
[365193470,1749526265423,-450.0,0.00017095,2]
[365193471,1749526265432,-490.0,0.00017095,2]
[365193472,1749526265442,-3064.89469266,0.0001713,2]
[365193473,1749526265451,-173.50850097,0.0001716,2]
[365193474,1749526265461,-501.15040009,0.00017221,2]
[365193475,1749526265470,-300.0,0.00017259,2]
[365193476,1749526265479,-475.17460001,0.0001726,2]
[365193477,1749526265489,-490.0,0.0001726,2]
[365193478,1749526265499,-574.33041506,0.0001726,2]
[365193479,1749526265508,-784.78,0.0001726,2]
[365193480,1749526265518,-490.0,0.0001726,2]
[365193481,1749526265527,-430.0,0.0001726,2]
[365193482,1749526265537,-490.0,0.0001726,2]
[365193483,1749526265546,-450.0,0.0001726,2]
[365193484,1749526265556,-490.0,0.0001726,2]
[365193485,1749526265566,-490.0,0.0001726,2]
[365193486,1749526265575,-490.0,0.0001726,2]
[365193487,1749526265585,-490.0,0.0001726,2]
[365193488,1749526265594,-490.0,0.0001726,2]
[365193489,1749526265603,-490.0,0.0001726,2]
[365193490,1749526265612,-490.0,0.0001726,2]
[365193491,1749526265622,-490.0,0.0001726,2]
[365193492,1749526265632,-490.0,0.0001726,2]
[365193493,1749526265642,-490.0,0.0001726,2]
[365193494,1749526265651,-490.0,0.0001726,2]
[365193495,1749526265661,-490.0,0.0001726,2]
[365193496,1749526265670,-490.0,0.0001726,2]
[365193497,1749526265679,-576.32,0.0001726,2]
[365193498,1749526265689,-490.0,0.0001726,2]
[365193499,1749526265699,-490.0,0.0001726,2]
[365193500,1749526265709,-490.0,0.0001726,2]
[365193501,1749526265719,-490.0,0.0001726,2]
[365193502,1749526265728,-490.0,0.0001726,2]
[365193503,1749526265737,-490.0,0.0001726,2]
[365193504,1749526265747,-490.0,0.0001726,2]
[365193505,1749526265756,-490.0,0.0001726,2]
[365193506,1749526265766,-490.0,0.0001726,2]
[365193507,1749526265776,-490.0,0.0001726,2]
[365193508,1749526265785,-490.0,0.0001726,2]
[365193509,1749526265796,-490.0,0.0001726,2]
[365193510,1749526265805,-460.0,0.0001726,2]
[365193511,1749526265815,-490.0,0.0001726,2]
[365193512,1749526265825,-450.0,0.0001726,2]
[365193513,1749526265835,-490.0,0.0001726,2]
[365193514,1749526265844,-490.0,0.0001726,2]
[365193515,1749526265854,-490.0,0.0001726,2]
[365193516,1749526265863,-490.0,0.0001726,2]
[365193517,1749526265873,-173.75885957,0.0001726,2]
[365193518,1749526265882,-490.0,0.0001726,2]
[365193519,1749526265892,-490.0,0.0001726,2]
[365193520,1749526265902,-490.0,0.0001726,2]
[365193521,1749526265913,-490.0,0.0001726,2]
[365193522,1749526265925,-572.56,0.0001726,2]
[365193523,1749526265935,-490.0,0.0001726,2]
[365193524,1749526265944,-490.0,0.0001726,2]
[365193525,1749526265954,-490.0,0.0001726,2]
[365193526,1749526265963,-490.0,0.0001726,2]
[365193527,1749526265972,-670.49,0.0001726,2]
[365193528,1749526265982,-1021.55,0.0001726,2]
[365193529,1749526265992,-490.0,0.0001726,2]
[365193530,1749526266002,-490.0,0.0001726,2]
[365193531,1749526266013,-658.39,0.0001726,2]
[365193532,1749526266022,-490.0,0.0001726,2]
[365193533,1749526266031,-844.16,0.0001726,2]
[365193534,1749526266041,-924.26,0.0001726,2]
[365193535,1749526266051,-579.36,0.0001726,2]
[365193536,1749526266060,-490.0,0.0001726,2]
[365193537,1749526266069,-490.0,0.0001726,2]
[365193538,1749526266079,-586.8,0.0001726,2]
[365193539,1749526266091,-1163.85,0.0001726,2]
[365193540,1749526266101,-490.0,0.0001726,2]
[365193541,1749526266111,-490.0,0.0001726,2]
[365193542,1749526266121,-490.0,0.0001726,2]
[365193543,1749526266131,-647.58,0.0001726,2]
[365193544,1749526266140,-490.0,0.0001726,2]
[365193545,1749526266150,-490.0,0.0001726,2]
[365193546,1749526266160,-490.0,0.0001726,2]
[365193547,1749526266169,-490.0,0.0001726,2]
[365193548,1749526266179,-490.0,0.0001726,2]
[365193549,1749526266188,-1000.0,0.0001726,2]
[365193550,1749526266198,-508.09,0.0001726,2]
[365193551,1749526266208,-490.0,0.0001726,2]
[365193552,1749526266217,-490.0,0.0001726,2]
[365193553,1749526266226,-490.0,0.0001726,2]
[365193554,1749526266236,-490.0,0.0001726,2]
[365193555,1749526266245,-490.0,0.0001726,2]
[365193556,1749526266255,-490.0,0.0001726,2]
[365193557,1749526266264,-490.0,0.0001726,2]
[365193558,1749526266274,-684.99,0.0001726,2]
[365193559,1749526266284,-490.0,0.0001726,2]
[365193560,1749526266294,-490.0,0.0001726,2]
[365193561,1749526266303,-490.0,0.0001726,2]
[365193562,1749526266313,-490.0,0.0001726,2]
[365193563,1749526266323,-2996.61,0.0001726,2]
[365193564,1749526266332,-490.0,0.0001726,2]
[365193565,1749526266342,-490.0,0.0001726,2]
[365193566,1749526266352,-490.0,0.0001726,2]
[365193567,1749526266363,-490.0,0.0001726,2]
[365193568,1749526266372,-1031.3,0.0001726,2]
[365193569,1749526266382,-490.0,0.0001726,2]
[365193570,1749526266391,-490.0,0.0001726,2]
[365193571,1749526266402,-495.50914601,0.0001726,2]
[365193572,1749526266412,-669.24,0.0001726,2]
[365193573,1749526266421,-490.0,0.0001726,2]
[365193574,1749526266431,-490.0,0.0001726,2]
[365193575,1749526266440,-236.35104965,0.0001726,2]
[365193576,1749526266449,-490.0,0.0001726,2]
[365193577,1749526266459,-543.04,0.0001726,2]
[365193578,1749526266468,-490.0,0.0001726,2]
[365193579,1749526266478,-1097.65,0.0001726,2]
[365193580,1749526266487,-490.0,0.0001726,2]
[365193581,1749526266497,-470.0,0.0001726,2]
[365193582,1749526266507,-490.0,0.0001726,2]
[365193583,1749526266517,-490.0,0.0001726,2]
[365193584,1749526266527,-495.1241828,0.0001726,2]
[365193585,1749526266537,-290.52661273,0.0001726,2]
[365193586,1749526266547,-490.0,0.0001726,2]
[365193587,1749526266556,-490.0,0.0001726,2]
[365193588,1749526266566,-694.53,0.0001726,2]
[365193589,1749526266576,-526.5,0.0001726,2]
[365193590,1749526266585,-490.0,0.0001726,2]
[365193591,1749526266595,-490.0,0.0001726,2]
[365193592,1749526266604,-490.0,0.0001726,2]
[365193593,1749526266614,-1394.7,0.0001726,2]
[365193594,1749526266623,-703.97,0.0001726,2]
[365193595,1749526266633,-490.0,0.0001726,2]
[365193596,1749526266643,-490.0,0.0001726,2]
[365193597,1749526266654,-490.0,0.0001726,2]
[365193598,1749526266664,-490.0,0.0001726,2]
[365193599,1749526266674,-490.0,0.0001726,2]
[365193600,1749526266684,-23018.55,0.0001726,2]
[365193601,1749526266693,-297.34,0.0001726,2]
[365193602,1749526266703,-528.75,0.0001726,2]
[365193603,1749526266713,-490.0,0.0001726,2]
[365193604,1749526266723,-1059.34,0.0001726,2]
[365193605,1749526266733,-490.0,0.0001726,2]
[365193606,1749526266743,-490.0,0.0001726,2]
[365193607,1749526266752,-325.92,0.0001726,2]
[365193608,1749526266763,-490.0,0.0001726,2]
[365193609,1749526266772,-490.0,0.0001726,2]
[365193610,1749526266781,-490.0,0.0001726,2]
[365193611,1749526266791,-490.0,0.0001726,2]
[365193612,1749526266800,-490.0,0.0001726,2]
[365193613,1749526266810,-490.0,0.0001726,2]
[365193614,1749526266820,-440.0,0.0001726,2]
[365193615,1749526266829,-490.0,0.0001726,2]
[365193616,1749526266838,-591.65551588,0.0001726,2]
[365193617,1749526266848,-430.0,0.0001726,2]
[365193618,1749526266858,-490.0,0.0001726,2]
[365193619,1749526266867,-490.0,0.0001726,2]
[365193620,1749526266877,-490.0,0.0001726,2]
[365193621,1749526266887,-490.0,0.0001726,2]
[365193622,1749526266897,-490.0,0.0001726,2]
[365193623,1749526266906,-1485.99,0.0001726,2]
[365193624,1749526266917,-490.0,0.0001726,2]
[365193625,1749526266930,-490.0,0.0001726,2]
[365193626,1749526266940,-490.0,0.0001726,2]
[365193627,1749526266950,-490.0,0.0001726,2]
[365193628,1749526266960,-490.0,0.0001726,2]
[365193629,1749526266970,-490.0,0.0001726,2]
[365193630,1749526266980,-490.0,0.0001726,2]
[365193631,1749526266990,-490.0,0.0001726,2]
[365193632,1749526267001,-1514.56,0.0001726,2]
[365193633,1749526267011,-490.0,0.0001726,2]
[365193634,1749526267020,-524.27,0.0001726,2]
[365193635,1749526267030,-490.0,0.0001726,2]
[365193636,1749526267040,-233.91,0.0001726,2]
[365193637,1749526267050,-265.7647044,0.0001726,2]
[365193638,1749526267059,-500.0,0.00017346,2]
[365193639,1749526267069,-802.0,0.00017347,2]
[365193640,1749526267078,-637.0,0.00017347,2]
[365193641,1749526267088,-1275.0,0.00017347,2]
[365193642,1749526267098,-2001.0,0.00017347,2]
[365193643,1749526267107,-590.0,0.00017347,2]
[365193644,1749526267117,-558.0,0.00017347,2]
[365193645,1749526267126,-927.0,0.00017347,2]
[365193646,1749526267135,-1256.0,0.00017347,2]
[365193647,1749526267144,-1159.0,0.00017347,2]
[365193648,1749526267154,-4085.0,0.00017347,2]
[365193649,1749526267164,-7064.0,0.00017347,2]
[365193650,1749526267173,-167.893,0.00017347,2]
[365193651,1749526267182,-298.911,0.00017347,2]
[365193652,1749526267191,-2637.0,0.00017347,2]
[365193653,1749526267201,-1000.0,0.00017399,2]
[365193654,1749526267210,-1000.0,0.0001741,2]
[365193655,1749526267219,-773.27,0.00017423,2]
[365193656,1749526267229,-500.0,0.00017423,2]
[365193657,1749526267240,-490.0,0.00017424,2]
[365193658,1749526267250,-784.78,0.00017424,2]
[365193659,1749526267259,-238.28,0.00017424,2]
[365193660,1749526267269,-490.0,0.00017424,2]
[365193661,1749526267278,-490.0,0.00017424,2]
[365193662,1749526267287,-490.0,0.00017424,2]
[365193663,1749526267297,-490.0,0.00017424,2]
[365193664,1749526267306,-490.0,0.00017424,2]
[365193665,1749526267316,-490.0,0.00017424,2]
[365193666,1749526267327,-514.31,0.00017424,2]
[365193667,1749526267337,-490.0,0.00017424,2]
[365193668,1749526267346,-401.26686173,0.00017424,2]
[365193669,1749526267357,-490.0,0.00017424,2]
[365193670,1749526267367,-490.0,0.00017424,2]
[365193671,1749526267376,-490.0,0.00017424,2]
[365193672,1749526267386,-490.0,0.00017424,2]
[365193673,1749526267395,-440.0,0.00017424,2]
[365193674,1749526267405,-576.32,0.00017424,2]
[365193675,1749526267415,-490.0,0.00017424,2]
[365193676,1749526267424,-490.0,0.00017424,2]
[365193677,1749526267433,-490.0,0.00017424,2]
[365193678,1749526267442,-490.0,0.00017424,2]
[365193679,1749526267452,-490.0,0.00017424,2]
[365193680,1749526267461,-490.0,0.00017424,2]
[365193681,1749526267471,-490.0,0.00017424,2]
[365193682,1749526267480,-490.0,0.00017424,2]
[365193683,1749526267489,-490.0,0.00017424,2]
[365193684,1749526267498,-490.0,0.00017424,2]
[365193685,1749526267508,-490.0,0.00017424,2]
[365193686,1749526267517,-490.0,0.00017424,2]
[365193687,1749526267526,-442.03511954,0.00017424,2]
[365193688,1749526267536,-490.0,0.00017424,2]
[365193689,1749526267546,-366.40137662,0.00017424,2]
[365193690,1749526267555,-490.0,0.00017424,2]
[365193691,1749526267564,-490.0,0.00017424,2]
[365193692,1749526267574,-490.0,0.00017424,2]
[365193693,1749526267583,-440.0,0.00017424,2]
[365193694,1749526267595,-490.0,0.00017424,2]
[365193695,1749526267604,-490.0,0.00017424,2]
[365193696,1749526267614,-572.56,0.00017424,2]
[365193697,1749526267624,-490.0,0.00017424,2]
[365193698,1749526267634,-177.69,0.00017424,2]
[365193699,1749526267644,-490.0,0.00017424,2]
[365193700,1749526267654,-490.0,0.00017424,2]
[365193701,1749526267729,-670.49,0.00017424,2]
[365193702,1749526267740,-1021.55,0.00017424,2]
[365193703,1749526267749,-490.0,0.00017424,2]
[365193704,1749526267759,-490.0,0.00017424,2]
[365193705,1749526267768,-658.39,0.00017424,2]
[365193706,1749526267777,-490.0,0.00017424,2]
[365193707,1749526267787,-844.16,0.00017424,2]
[365193708,1749526267796,-924.26,0.00017424,2]
[365193709,1749526267806,-579.36,0.00017424,2]
[365193710,1749526267816,-420.0,0.00017424,2]
[365193711,1749526267825,-585.88639536,0.00017424,2]
[365193712,1749526267835,-586.8,0.00017424,2]
[365193713,1749526267845,-1163.85,0.00017424,2]
[365193714,1749526267854,-490.0,0.00017424,2]
[365193715,1749526267864,-490.0,0.00017424,2]
[365193716,1749526267873,-490.0,0.00017424,2]
[365193717,1749526267883,-647.58,0.00017424,2]
[365193718,1749526267892,-490.0,0.00017424,2]
[365193719,1749526267902,-490.0,0.00017424,2]
[365193720,1749526267912,-490.0,0.00017424,2]
[365193721,1749526267923,-490.0,0.00017424,2]
[365193722,1749526267934,-490.0,0.00017424,2]
[365193723,1749526267943,-1056.60941997,0.00017424,2]
[365193724,1749526267953,-508.09,0.00017424,2]
[365193725,1749526267962,-490.0,0.00017424,2]
[365193726,1749526267973,-490.0,0.00017424,2]
[365193727,1749526267982,-490.0,0.00017424,2]
[365193728,1749526267991,-490.0,0.00017424,2]
[365193729,1749526268001,-490.0,0.00017424,2]
[365193730,1749526268010,-490.0,0.00017424,2]
[365193731,1749526268019,-490.0,0.00017424,2]
[365193732,1749526268029,-684.99,0.00017424,2]
[365193733,1749526268039,-490.0,0.00017424,2]
[365193734,1749526268048,-490.0,0.00017424,2]
[365193735,1749526268058,-490.0,0.00017424,2]
[365193736,1749526268067,-490.0,0.00017424,2]
[365193737,1749526268076,-2996.61,0.00017424,2]
[365193738,1749526268085,-490.0,0.00017424,2]
[365193739,1749526268095,-490.0,0.00017424,2]
[365193740,1749526268104,-490.0,0.00017424,2]
[365193741,1749526268114,-490.0,0.00017424,2]
[365193742,1749526268123,-1031.3,0.00017424,2]
[365193743,1749526268132,-490.0,0.00017424,2]
[365193744,1749526268141,-490.0,0.00017424,2]
[365193745,1749526268151,-669.24,0.00017424,2]
[365193746,1749526268161,-490.0,0.00017424,2]
[365193747,1749526268170,-490.0,0.00017424,2]
[365193748,1749526268179,-490.0,0.00017424,2]
[365193749,1749526268188,-543.04,0.00017424,2]
[365193750,1749526268198,-490.0,0.00017424,2]
[365193751,1749526268208,-1097.65,0.00017424,2]
[365193752,1749526268218,-490.0,0.00017424,2]
[365193753,1749526268227,-490.0,0.00017424,2]
[365193754,1749526268237,-490.0,0.00017424,2]
[365193755,1749526268247,-490.0,0.00017424,2]
[365193756,1749526268257,-457.83781985,0.00017424,2]
[365193757,1749526268267,-694.53,0.00017424,2]
[365193758,1749526268276,-526.5,0.00017424,2]
[365193759,1749526268285,-490.0,0.00017424,2]
[365193760,1749526268295,-490.0,0.00017424,2]
[365193761,1749526268305,-490.0,0.00017424,2]
[365193762,1749526268314,-1394.7,0.00017424,2]
[365193763,1749526268325,-703.97,0.00017424,2]
[365193764,1749526268334,-490.0,0.00017424,2]
[365193765,1749526268346,-490.0,0.00017424,2]
[365193766,1749526268356,-490.0,0.00017424,2]
[365193767,1749526268365,-490.0,0.00017424,2]
[365193768,1749526268375,-490.0,0.00017424,2]
[365193769,1749526268385,-6078.97625723,0.00017424,2]
[365193770,1749526269463,500.0,0.00014739,2]
[365193771,1749526319410,1333.0,0.00023979,120]
[365193772,1749526333082,-177.80822872,0.00016028,2]
[365193773,1749526337025,-203.76515372,0.00016028,2]
[365193774,1749526339682,-240.92654678,0.00016028,2]
[365193775,1749526341267,-208.90161678,0.00016028,2]
[365193777,1749526644142,631.85,0.00014083,2]
[365193778,1749526682573,2164.96,0.0001592,2]
[365193784,1749526727615,214.51,0.00013699,2]
[365193785,1749526740042,328.0,0.0002465,120]
[365193811,1749526803159,5183.35,0.00016,2]
[365193812,1749526812451,-163.30127842,0.00016001,2]
[365193813,1749526815671,-195.69872158,0.00016001,2]
[365193814,1749526829891,262.96,0.00015823,2]
[365193815,1749526841395,155.59372675,0.00023425,120]
[365193816,1749526842899,-186.88879322,0.00016001,2]
[365193817,1749526846763,-15.11120678,0.00016001,2]
[365193818,1749526872335,-161.1233,0.00016001,2]
[365193819,1749526875312,-25.7655,0.00016001,2]
[365193820,1749526878872,-167.5,0.00016102,2]
[365193821,1749526878897,-128.39168882,0.00016109,2]
[365193822,1749526916094,504.62595246,0.00016,2]
[365193823,1749526916678,-204.24566359,0.00016001,2]
[365193824,1749526919029,-250.0,0.00016001,2]